bitfinex-derivatives/quotes_BTCF0:USTF0_20241103
["timestamp","ask_amount","ask_price","bid_price","bid_amount"]
[1730646024971,0.033,67820.0,67813.0,0.29478328]
[1730646025379,0.033,67820.0,67817.0,0.073745]
[1730646025572,0.3608,67827.0,67815.0,0.3608]
[1730646025777,0.073739,67824.0,67819.0,0.073743]
[1730646025962,0.3608,67827.0,67816.0,0.22056902]
[1730646026166,0.0345,67832.0,67829.0,0.073732]
[1730646026378,0.073732,67830.0,67823.0,0.3608]
[1730646026578,0.073732,67830.0,67827.0,0.073734]
[1730646027090,0.073732,67830.0,67828.0,0.22084222]
[1730646027784,0.07594019,67834.0,67831.0,0.07373]
[1730646028178,0.00221219,67834.0,67833.0,0.073728]
[1730646028473,0.00221219,67834.0,67833.0,0.2949102]
[1730646028871,0.01121219,67834.0,67833.0,0.2949102]
[1730646029070,0.02421219,67834.0,67833.0,0.2949102]
[1730646029379,0.02421219,67834.0,67833.0,0.2211822]
[1730646029380,0.09793919,67834.0,67833.0,0.2211822]
[1730646029686,0.02421219,67834.0,67833.0,0.074728]
[1730646029870,0.022,67834.0,67833.0,0.075728]
[1730646030071,0.022,67834.0,67833.0,0.29702444]
[1730646031481,0.022,67834.0,67833.0,0.32952444]
[1730646031782,0.009,67834.0,67833.0,0.32852444]
[1730646031968,0.023,67834.0,67833.0,0.32952444]
[1730646032375,0.023,67834.0,67833.0,0.44704444]
[1730646032666,0.009,67834.0,67833.0,0.32852444]
[1730646032872,0.073719,67842.0,67833.0,0.25579644]
[1730646033078,0.3608,67845.0,67833.0,0.25579644]
[1730646033272,0.3608,67845.0,67834.0,0.073727]
[1730646033477,0.073713,67847.0,67833.0,0.25579644]
[1730646033478,0.073713,67847.0,67843.0,0.073716]
[1730646033877,0.0328,67855.0,67845.0,0.073715]
[1730646033878,0.07592156,67850.0,67845.0,0.073715]
[1730646034179,0.07592156,67850.0,67847.0,0.073713]
[1730646035072,0.00221156,67850.0,67848.0,0.434512]
[1730646035271,0.008,67850.0,67848.0,0.58214803]
[1730646035483,0.008,67850.0,67849.0,0.106611]
[1730646035977,0.022,67850.0,67849.0,0.32782904]
[1730646036179,0.073693,67866.0,67861.0,0.073697]
[1730646036375,0.073693,67866.0,67862.0,0.073697]
[1730646036568,0.073693,67866.0,67862.0,0.29491504]
[1730646036773,0.3608,67872.0,67862.0,0.073697]
[1730646036975,0.073694,67865.0,67862.0,0.073697]
[1730646037175,0.073694,67865.0,67863.0,0.22211887]
[1730646038668,0.073694,67865.0,67863.0,0.22411887]
[1730646039978,0.073694,67865.0,67863.0,0.29781487]
[1730646040289,0.073695,67864.0,67863.0,0.22411887]
[1730646040579,0.073695,67864.0,67863.0,0.002]
[1730646041379,0.073695,67864.0,67863.0,0.001]
[1730646041582,0.073695,67864.0,67863.0,0.002]
[1730646041785,0.3608,67872.0,67863.0,0.002]
[1730646041983,0.3608,67872.0,67867.0,0.07369]
[1730646041984,0.073691,67868.0,67867.0,0.07369]
[1730646042175,0.3608,67872.0,67863.0,0.22233946]
[1730646042176,0.073694,67866.0,67863.0,0.22233946]
[1730646042376,0.073694,67865.0,67863.0,0.002]
[1730646042685,0.073694,67865.0,67864.0,0.22033946]
[1730646043181,0.073694,67865.0,67864.0,0.29403446]
[1730646043382,0.3608,67872.0,67867.0,0.073691]
[1730646043383,0.07369,67868.0,67867.0,0.073691]
[1730646043787,0.073687,67871.0,67863.0,0.002]
[1730646044085,0.3608,67872.0,67871.0,0.073687]
[1730646044296,0.01791402,67873.0,67871.0,0.073687]
[1730646044481,0.073685,67873.0,67871.0,0.073687]
[1730646044779,0.073686,67872.0,67867.0,0.3608]
[1730646044982,0.073694,67865.0,67863.0,0.075695]
[1730646045182,0.07369,67869.0,67865.0,0.073693]
[1730646045385,0.073692,67867.0,67865.0,0.073693]
[1730646045574,0.073692,67867.0,67866.0,0.22059016]
[1730646046286,0.073692,67867.0,67866.0,0.29428316]
[1730646047090,0.073692,67867.0,67866.0,0.22059016]
[1730646047388,0.073699,67860.0,67857.0,0.01800167]
[1730646047578,0.073699,67860.0,67859.0,0.4345]
[1730646048192,0.073695,67864.0,67863.0,0.073695]
[1730646048686,0.073699,67860.0,67859.0,0.3608]
[1730646048886,0.073699,67860.0,67859.0,0.001]
[1730646049182,0.074699,67860.0,67859.0,0.002]
[1730646049576,0.37915182,67867.0,67852.0,0.01843798]
[1730646049577,0.074695,67864.0,67863.0,0.002]
[1730646049781,0.074695,67864.0,67863.0,0.00059697]
[1730646050788,0.516775,67864.0,67863.0,0.00059697]
[1730646051087,0.073699,67860.0,67859.0,0.0737]
[1730646051282,0.076699,67860.0,67859.0,0.0757]
[1730646051783,0.074699,67860.0,67859.0,0.0747]
[1730646051987,0.073699,67860.0,67859.0,0.0737]
[1730646052180,0.073696,67863.0,67862.0,0.073696]
[1730646052587,0.001,67864.0,67863.0,0.073696]
[1730646052784,0.434492,67867.0,67866.0,0.073693]
[1730646053685,0.3608,67867.0,67866.0,0.073693]
[1730646053893,0.01798499,67876.0,67866.0,0.22174066]
[1730646054097,0.01798499,67876.0,67874.0,0.073684]
[1730646054484,0.01798499,67876.0,67874.0,0.29542466]
[1730646055286,0.00321076,67875.0,67874.0,0.29642466]
[1730646056895,0.00521076,67875.0,67874.0,0.29742466]
[1730646057593,0.00521076,67875.0,67874.0,0.41478466]
[1730646058896,0.00321076,67875.0,67874.0,0.43236808]
[1730646059095,0.00421076,67875.0,67874.0,0.43336808]
[1730646059288,0.003,67875.0,67874.0,0.31600808]
[1730646059685,0.00220981,67903.0,67874.0,0.98432408]
[1730646059892,0.073657,67899.0,67892.0,0.073664]
[1730646060092,0.00220981,67903.0,67892.0,0.073664]
[1730646060292,0.07586281,67903.0,67892.0,0.29484839]
[1730646060597,0.07586281,67903.0,67899.0,0.073657]
[1730646060997,0.07586281,67903.0,67899.0,0.29443921]
[1730646062199,0.173656,67900.0,67899.0,0.22078221]
[1730646062402,0.174656,67900.0,67899.0,0.001]
[1730646062699,0.616496,67900.0,67899.0,0.002]
[1730646063088,0.206156,67900.0,67899.0,0.002]
[1730646063292,0.647996,67900.0,67899.0,0.002]
[1730646063788,0.206156,67900.0,67899.0,0.002]
[1730646064702,0.206156,67900.0,67899.0,0.075657]
[1730646065699,0.174656,67900.0,67899.0,0.075657]
[1730646066098,0.101,67900.0,67899.0,0.29779125]
[1730646067195,0.1,67900.0,67899.0,0.31511214]
[1730646067396,0.1,67900.0,67899.0,0.41511125]
[1730646067600,0.1,67900.0,67899.0,0.41411125]
[1730646067794,0.1,67900.0,67899.0,0.41511125]
[1730646067993,0.1,67900.0,67899.0,0.41411125]
[1730646068189,0.1,67900.0,67899.0,0.29779125]
[1730646068190,0.173656,67900.0,67899.0,0.29779125]
[1730646068498,0.173656,67900.0,67899.0,0.002]
[1730646070706,0.615496,67900.0,67899.0,0.002]
[1730646071000,0.173656,67900.0,67899.0,0.002]
[1730646073107,0.615496,67900.0,67899.0,0.002]
[1730646073803,0.073676,67881.0,67880.0,0.3608]
[1730646073991,0.54184,67900.0,67878.0,0.00216949]
[1730646073992,0.073678,67879.0,67878.0,0.00216949]
[1730646074606,0.515638,67879.0,67878.0,0.00216949]
[1730646074904,0.3608,67884.0,67878.0,0.22032462]
[1730646075200,0.3608,67884.0,67873.0,0.22032462]
[1730646075603,0.3608,67884.0,67881.0,0.073676]
[1730646075902,0.3608,67884.0,67883.0,0.073674]
[1730646076607,0.434473,67884.0,67883.0,0.073674]
[1730646076909,0.441473,67884.0,67883.0,0.073674]
[1730646077208,0.3728,67884.0,67883.0,0.073674]
[1730646078502,0.3768,67884.0,67883.0,0.001]
[1730646078701,0.892393,67884.0,67883.0,0.001]
[1730646079009,0.889393,67884.0,67883.0,0.001]
[1730646079203,0.447473,67884.0,67883.0,0.001]
[1730646079600,1.250193,67884.0,67883.0,0.001]
[1730646079911,1.550193,67884.0,67865.0,0.3608]
[1730646080110,1.550193,67884.0,67875.0,0.073683]
[1730646080111,0.3608,67876.0,67875.0,0.073683]
[1730646080409,0.3738,67884.0,67870.0,0.22048963]
[1730646080609,0.3738,67884.0,67881.0,0.073676]
[1730646080610,0.073674,67883.0,67881.0,0.073676]
[1730646081206,0.073674,67883.0,67882.0,0.073675]
[1730646081707,0.3658,67884.0,67877.0,0.22014537]
[1730646081909,0.3648,67884.0,67883.0,0.073674]
[1730646082207,0.004,67884.0,67883.0,0.073674]
[1730646082596,0.004,67884.0,67876.0,0.37904454]
[1730646082597,0.0647,67890.0,67876.0,0.37904454]
[1730646082801,0.3608,67893.0,67876.0,0.37904454]
[1730646082802,0.073666,67891.0,67876.0,0.37904454]
[1730646083103,0.3608,67893.0,67886.0,0.07367]
[1730646083104,0.073669,67888.0,67886.0,0.07367]
[1730646083310,0.073669,67888.0,67877.0,0.25339502]
[1730646083614,0.004,67884.0,67877.0,0.0312]
[1730646083807,0.008,67883.0,67882.0,0.074675]
[1730646084406,0.073671,67886.0,67883.0,0.073673]
[1730646084604,0.073673,67884.0,67883.0,0.073673]
[1730646085411,0.073675,67882.0,67877.0,0.001]
[1730646085613,0.073675,67882.0,67880.0,0.073677]
[1730646085909,0.073675,67882.0,67869.0,0.03480997]
[1730646085910,0.3608,67886.0,67873.0,0.073685]
[1730646086102,0.073684,67874.0,67873.0,0.073685]
[1730646086302,0.073688,67871.0,67869.0,0.02076607]
[1730646086709,0.073688,67871.0,67870.0,0.073688]
[1730646088012,0.075688,67871.0,67870.0,0.073688]
[1730646088801,0.002,67871.0,67869.0,0.002]
[1730646089004,0.434488,67870.0,67869.0,0.002]
[1730646089216,0.073693,67866.0,67865.0,0.0185068]
[1730646089421,0.073693,67866.0,67865.0,0.073694]
[1730646090818,0.3608,67870.0,67867.0,0.07369]
[1730646091011,0.073688,67871.0,67870.0,0.073688]
[1730646091506,0.031,67873.0,67865.0,0.003]
[1730646091507,0.073691,67868.0,67865.0,0.076693]
[1730646091712,0.001,67866.0,67865.0,0.076693]
[1730646092111,0.074693,67866.0,67865.0,0.076693]
[1730646092306,0.073693,67866.0,67865.0,0.076693]
[1730646092713,0.006,67871.0,67865.0,0.003]
[1730646093411,0.07369,67868.0,67865.0,0.002]
[1730646093612,0.006,67871.0,67865.0,0.002]
[1730646093817,0.073688,67871.0,67870.0,0.073688]
[1730646094515,0.074688,67871.0,67870.0,0.073688]
[1730646095122,0.080688,67871.0,67870.0,0.074688]
[1730646096420,0.082688,67871.0,67870.0,0.074688]
[1730646096811,0.081688,67871.0,67870.0,0.073688]
[1730646097007,0.008,67871.0,67870.0,0.073688]
[1730646098511,0.008,67871.0,67870.0,0.29604448]
[1730646099114,0.008,67871.0,67870.0,0.35458493]
[1730646099319,0.008,67871.0,67870.0,0.31409848]
[1730646099824,0.006,67871.0,67870.0,0.31409848]
[1730646100116,0.3608,67882.0,67870.0,0.24341048]
[1730646100313,0.3608,67882.0,67881.0,0.073676]
[1730646100515,0.3608,67882.0,67871.0,0.073687]
[1730646100516,0.073669,67888.0,67884.0,0.073673]
[1730646100710,0.073669,67888.0,67884.0,0.073633]
[1730646101219,0.434469,67888.0,67884.0,0.073633]
[1730646101412,0.435749,67888.0,67884.0,0.073633]
[1730646101607,0.008,67882.0,67881.0,0.074676]
[1730646103123,0.00321077,67885.0,67884.0,0.073673]
[1730646103124,0.00821077,67885.0,67884.0,0.073673]
[1730646103519,0.00721077,67885.0,67884.0,0.073673]
[1730646103725,0.00221077,67885.0,67884.0,0.073673]
[1730646104419,0.00721077,67885.0,67884.0,0.073673]
[1730646105122,0.00821077,67885.0,67884.0,0.073673]
[1730646106123,0.00221077,67885.0,67884.0,0.074673]
[1730646106328,0.00521077,67885.0,67884.0,0.074673]
[1730646106512,0.003,67885.0,67884.0,0.074673]
[1730646106712,0.073665,67891.0,67890.0,0.073666]
[1730646107033,0.00128,67895.0,67894.0,0.073662]
[1730646107217,0.173656,67900.0,67890.0,0.3608]
[1730646107218,0.173656,67900.0,67899.0,0.073657]
[1730646107825,0.1,67900.0,67899.0,0.073657]
[1730646108827,0.105,67900.0,67899.0,0.074657]
[1730646109714,0.105,67900.0,67899.0,0.09284762]
[1730646110111,0.117,67900.0,67899.0,0.09384762]
[1730646111135,0.117,67900.0,67899.0,0.3149846]
[1730646111323,0.3608,67915.0,67914.0,0.07364]
[1730646111628,0.0314,67918.0,67917.0,0.073637]
[1730646111825,0.3608,67919.0,67918.0,0.073636]
[1730646112327,0.3608,67919.0,67918.0,0.29536061]
[1730646112731,0.0326,67929.0,67918.0,1.02424461]
[1730646113025,0.0326,67929.0,67924.0,0.3608]
[1730646113533,0.394,67934.0,67925.0,0.21943911]
[1730646113534,0.3608,67934.0,67925.0,0.21943911]
[1730646113828,0.3608,67934.0,67933.0,0.07362]
[1730646115224,0.3608,67941.0,67940.0,0.073612]
[1730646115533,0.3608,67941.0,67933.0,0.22164929]
[1730646115534,0.3608,67950.0,67933.0,0.001]
[1730646115721,0.07361,67943.0,67936.0,0.073616]
[1730646116221,0.0321,67948.0,67936.0,0.073616]
[1730646116222,0.073612,67941.0,67936.0,0.073616]
[1730646116525,0.0324,67947.0,67934.0,0.11708]
[1730646116526,0.0324,67947.0,67938.0,0.073614]
[1730646117218,0.073608,67945.0,67938.0,0.073614]
[1730646117620,0.0324,67947.0,67938.0,0.073614]
[1730646117621,0.3618,67941.0,67940.0,0.001]
[1730646117928,0.435411,67941.0,67940.0,0.001]
[1730646118316,0.3608,67941.0,67938.0,0.001]
[1730646118516,0.073624,67930.0,67927.0,0.073626]
[1730646118834,1.16316,67941.0,67927.0,0.073626]
[1730646118835,0.073625,67928.0,67927.0,0.073626]
[1730646119325,0.0303,67929.0,67918.0,0.11708]
[1730646119326,0.0303,67929.0,67922.0,0.073631]
[1730646119531,0.07363,67924.0,67922.0,0.073631]
[1730646120326,0.073634,67920.0,67917.0,0.073637]
[1730646120526,0.073635,67919.0,67917.0,0.073637]
[1730646120738,0.073637,67917.0,67912.0,0.3608]
[1730646120918,0.073637,67917.0,67916.0,0.073638]
[1730646121121,0.3608,67919.0,67912.0,0.3608]
[1730646121433,0.3608,67919.0,67910.0,0.0022086]
[1730646121434,0.073644,67911.0,67910.0,0.0022086]
[1730646122633,0.073651,67904.0,67900.0,0.073655]
[1730646122831,0.073652,67903.0,67900.0,0.073655]
[1730646123129,0.3608,67905.0,67900.0,0.073655]
[1730646123130,0.073654,67902.0,67900.0,0.073655]
[1730646123334,0.073655,67901.0,67895.0,0.11708]
[1730646123525,0.073656,67900.0,67888.0,0.11708]
[1730646123726,0.073656,67900.0,67896.0,0.22118749]
[1730646123931,0.073656,67900.0,67893.0,0.22118749]
[1730646124127,0.3608,67905.0,67904.0,0.073651]
[1730646124927,0.3608,67905.0,67900.0,0.004]
[1730646125238,0.073653,67902.0,67895.0,0.011]
[1730646125435,0.3608,67905.0,67904.0,0.073651]
[1730646126328,0.3638,67905.0,67904.0,0.29467886]
[1730646126641,0.43745,67905.0,67904.0,0.073651]
[1730646126829,0.003,67905.0,67901.0,0.073654]
[1730646127029,0.073653,67902.0,67901.0,0.073654]
[1730646127235,0.003,67905.0,67904.0,0.073651]
[1730646127738,0.003,67905.0,67901.0,0.29350407]
[1730646127941,0.3608,67907.0,67901.0,0.079654]
[1730646128438,0.3608,67907.0,67901.0,0.087654]
[1730646128826,0.073653,67902.0,67901.0,0.087654]
[1730646129325,0.073653,67902.0,67901.0,0.081654]
[1730646130129,0.073653,67902.0,67901.0,0.082654]
[1730646130730,0.434449,67907.0,67905.0,0.07365]
[1730646130931,0.073649,67906.0,67905.0,0.07365]
[1730646131230,0.3608,67907.0,67906.0,0.073649]
[1730646131436,0.434448,67907.0,67906.0,0.073649]
[1730646131934,0.3608,67907.0,67906.0,0.073649]
[1730646133343,0.3608,67907.0,67905.0,0.002]
[1730646133531,0.073649,67906.0,67905.0,0.002]
[1730646133841,0.073649,67906.0,67905.0,0.07565]
[1730646134343,0.073649,67906.0,67905.0,0.07365]
[1730646135538,0.073649,67906.0,67905.0,0.07665]
[1730646135737,0.073649,67906.0,67905.0,0.003]
[1730646136331,0.3608,67907.0,67906.0,0.073649]
[1730646136935,0.434448,67907.0,67906.0,0.073649]
[1730646138328,0.3608,67907.0,67906.0,0.073649]
[1730646138747,0.434448,67907.0,67906.0,0.073649]
[1730646138937,0.3618,67907.0,67906.0,0.073649]
[1730646139440,0.3608,67907.0,67906.0,0.073649]
[1730646139746,0.3608,67922.0,67906.0,0.22018905]
[1730646139945,0.073643,67912.0,67906.0,0.22018905]
[1730646140239,0.0301,67911.0,67910.0,0.073644]
[1730646140444,0.103744,67911.0,67910.0,0.073644]
[1730646142134,0.103744,67911.0,67910.0,0.075644]
[1730646142345,0.103744,67911.0,67910.0,0.078644]
[1730646142950,0.103744,67911.0,67910.0,0.002]
[1730646143131,0.103744,67911.0,67890.0,0.466166]
[1730646143132,0.56418734,67911.0,67894.0,0.01844886]
[1730646143336,0.3608,67904.0,67890.0,0.3608]
[1730646143542,0.073661,67896.0,67890.0,0.3608]
[1730646143749,0.3608,67904.0,67890.0,0.3608]
[1730646143750,0.104461,67895.0,67894.0,0.073661]
[1730646144843,0.3916,67895.0,67890.0,0.014]
[1730646145045,0.073665,67891.0,67890.0,0.014]
[1730646145438,0.073665,67891.0,67890.0,0.073666]
[1730646145640,0.465262,67895.0,67894.0,0.073662]
[1730646145934,0.465262,67895.0,67894.0,0.078662]
[1730646146350,0.465262,67895.0,67894.0,0.073662]
[1730646146849,0.3916,67895.0,67894.0,0.073662]
[1730646147240,0.0313,67903.0,67891.0,0.3608]
[1730646147446,0.0313,67903.0,67898.0,0.073658]
[1730646147447,0.073657,67899.0,67898.0,0.073658]
[1730646148539,0.0309,67902.0,67895.0,0.04408588]
[1730646148736,0.3608,67896.0,67888.0,0.04408588]
[1730646149058,0.073661,67895.0,67894.0,0.001]
[1730646149445,0.073667,67890.0,67888.0,0.11775916]
[1730646149658,0.3608,67896.0,67888.0,0.11775916]
[1730646149659,0.073668,67889.0,67888.0,0.11775916]
[1730646150045,0.073668,67889.0,67888.0,0.073669]
[1730646150240,0.073663,67894.0,67887.0,0.0768956]
[1730646150448,0.3608,67896.0,67887.0,0.0768956]
[1730646150449,0.3608,67896.0,67895.0,0.073661]
[1730646150744,0.3618,67896.0,67895.0,0.073661]
[1730646151347,0.43546,67896.0,67895.0,0.073661]
[1730646152149,0.43446,67896.0,67895.0,0.076661]
[1730646152658,0.43446,67896.0,67895.0,0.003]
[1730646153455,0.8763,67896.0,67895.0,0.003]
[1730646153654,0.07367,67887.0,67886.0,0.07367]
[1730646153848,0.073672,67885.0,67884.0,0.04632491]
[1730646154053,0.073672,67885.0,67884.0,0.00220951]
[1730646155153,0.53416627,67885.0,67884.0,0.00220951]
[1730646155356,0.073679,67878.0,67877.0,0.3608]
[1730646155654,0.073679,67878.0,67877.0,0.434481]
[1730646156151,0.3608,67882.0,67877.0,0.3608]
[1730646156351,0.073675,67882.0,67880.0,0.073676]
[1730646156552,0.0326,67886.0,67877.0,0.3628]
[1730646156859,0.001,67885.0,67884.0,0.086672]
[1730646157658,0.3608,67888.0,67887.0,0.07367]
[1730646158860,0.3678,67888.0,67887.0,0.07467]
[1730646160053,0.07587527,67892.0,67887.0,0.003]
[1730646160261,0.005,67888.0,67887.0,0.07667]
[1730646160953,0.073668,67889.0,67888.0,0.073669]
[1730646161151,0.00221027,67892.0,67887.0,0.008]
[1730646161356,0.00221027,67892.0,67891.0,0.073665]
[1730646162964,0.00321027,67892.0,67891.0,0.073665]
[1730646163566,0.00321027,67892.0,67891.0,0.080665]
[1730646164370,0.00321027,67892.0,67891.0,0.084665]
[1730646164666,0.07687427,67892.0,67891.0,0.011]
[1730646165056,0.00221027,67892.0,67884.0,0.01794449]
[1730646165258,0.00221027,67892.0,67888.0,0.073669]
[1730646165259,0.3608,67889.0,67888.0,0.073669]
[1730646165857,0.434468,67889.0,67888.0,0.073669]
[1730646166457,0.073671,67886.0,67885.0,0.073671]
[1730646167755,0.074671,67886.0,67885.0,0.006]
[1730646168260,0.074671,67886.0,67885.0,0.01]
[1730646170455,0.09342995,67886.0,67885.0,0.01]
[1730646172457,0.53534995,67886.0,67885.0,0.01]
[1730646173159,0.09342995,67886.0,67885.0,0.01]
[1730646174869,0.89614995,67886.0,67876.0,0.04411412]
[1730646175071,0.073683,67875.0,67874.0,0.04411412]
[1730646175477,0.3608,67877.0,67868.0,0.073689]
[1730646175478,0.073685,67873.0,67872.0,0.04411412]
[1730646175776,0.073685,67873.0,67860.0,0.00221027]
[1730646175777,0.073687,67871.0,67870.0,0.04411412]
[1730646175971,0.073688,67870.0,67869.0,0.04411412]
[1730646176161,0.073688,67870.0,67864.0,0.13247964]
[1730646176162,0.073688,67870.0,67868.0,0.044117]
[1730646176468,0.07369,67868.0,67867.0,0.044117]
[1730646177266,0.07369,67868.0,67867.0,0.04409993]
[1730646177570,0.3608,67869.0,67865.0,0.11779393]
[1730646178271,0.3608,67869.0,67862.0,0.01807495]
[1730646178272,0.073694,67865.0,67864.0,0.04409993]
[1730646178774,0.3608,67869.0,67860.0,0.07590827]
[1730646178775,0.073696,67863.0,67862.0,0.04409993]
[1730646178972,0.073691,67867.0,67862.0,0.04409993]
[1730646179170,0.073698,67861.0,67860.0,0.00221027]
[1730646179765,0.07371,67850.0,67848.0,0.11781093]
[1730646179969,0.073698,67861.0,67848.0,0.11781093]
[1730646179970,0.073711,67849.0,67848.0,0.11781093]
[1730646180167,0.073711,67849.0,67848.0,0.073711]
[1730646180375,0.073711,67849.0,67848.0,0.11777152]
[1730646180675,0.3608,67854.0,67846.0,0.04406154]
[1730646180874,0.073713,67847.0,67846.0,0.04406154]
[1730646181170,0.062,67853.0,67848.0,0.07371]
[1730646181480,0.074711,67849.0,67848.0,0.08771]
[1730646181975,0.073711,67849.0,67848.0,0.07371]
[1730646182275,0.074711,67849.0,67848.0,0.08371]
[1730646182669,0.001,67849.0,67848.0,0.08371]
[1730646182981,0.3608,67854.0,67853.0,0.073707]
[1730646183365,0.3608,67854.0,67848.0,0.005]
[1730646183769,0.074711,67849.0,67848.0,0.019]
[1730646184373,0.073711,67849.0,67848.0,0.005]
[1730646185099,0.073711,67849.0,67848.0,0.006]
[1730646185796,0.073711,67849.0,67848.0,0.005]
[1730646186195,0.079711,67849.0,67848.0,0.006]
[1730646186503,0.083711,67849.0,67848.0,0.001]
[1730646186698,0.083711,67849.0,67836.0,0.3608]
[1730646186913,0.073724,67837.0,67836.0,0.434525]
[1730646188109,0.073724,67837.0,67836.0,0.439525]
[1730646188801,0.073719,67842.0,67841.0,0.073719]
[1730646188999,0.073719,67842.0,67836.0,0.3658]
[1730646189000,0.001,67837.0,67836.0,0.3738]
[1730646189200,0.001,67837.0,67836.0,0.447525]
[1730646190404,0.3608,67847.0,67836.0,0.439525]
[1730646190611,0.3608,67847.0,67845.0,0.073715]
[1730646190612,0.073715,67846.0,67845.0,0.073715]
[1730646191116,0.3608,67847.0,67846.0,0.073714]
[1730646191808,0.073719,67844.0,67843.0,0.073717]
[1730646192111,0.073719,67844.0,67836.0,0.38457116]
[1730646192112,0.073724,67840.0,67839.0,0.073722]
[1730646192315,0.073723,67839.0,67838.0,0.073723]
[1730646192503,0.073723,67839.0,67836.0,0.38757116]
[1730646192504,0.0301,67843.0,67842.0,0.073719]
[1730646193898,0.0301,67843.0,67842.0,0.075719]
[1730646194407,0.3658,67847.0,67846.0,0.073714]
[1730646194914,0.3608,67847.0,67846.0,0.073714]
[1730646195885,0.3658,67847.0,67846.0,0.073714]
[1730646196588,0.3658,67847.0,67846.0,0.081714]
[1730646196589,0.3668,67847.0,67846.0,0.081714]
[1730646196890,0.006,67847.0,67846.0,0.081714]
[1730646197081,0.006,67847.0,67846.0,0.30250263]
[1730646197281,0.3608,67861.0,67860.0,0.073699]
[1730646198783,0.3608,67861.0,67853.0,0.073706]
[1730646198784,0.0323,67864.0,67863.0,0.073696]
[1730646199493,0.0323,67864.0,67860.0,0.001]
[1730646199715,0.073698,67861.0,67860.0,0.074696]
[1730646200092,0.073698,67861.0,67860.0,0.075696]
[1730646200093,0.080698,67861.0,67860.0,0.075696]
[1730646200300,0.080698,67861.0,67860.0,0.002]
[1730646200888,0.080698,67861.0,67860.0,0.001]
[1730646201898,0.084698,67861.0,67860.0,0.002]
[1730646202089,0.011,67861.0,67860.0,0.002]
[1730646202295,0.011,67861.0,67860.0,0.075699]
[1730646202697,0.084698,67861.0,67860.0,0.075699]
[1730646202897,0.011,67861.0,67860.0,0.075699]
[1730646203494,0.011,67861.0,67860.0,1.09884636]
[1730646203691,0.00221097,67868.0,67860.0,1.02514736]
[1730646203889,0.00221097,67868.0,67867.0,0.073691]
[1730646204604,0.00221097,67868.0,67867.0,0.29356265]
[1730646205493,0.00921097,67868.0,67867.0,0.29356265]
[1730646205693,0.01721097,67868.0,67867.0,0.33758586]
[1730646205895,0.01721097,67868.0,67867.0,0.29356265]
[1730646206095,0.01721097,67868.0,67867.0,0.73560265]
[1730646206294,0.01021097,67868.0,67867.0,0.73560265]
[1730646206498,0.01021097,67868.0,67867.0,0.73660265]
[1730646206499,0.02021097,67868.0,67867.0,0.73660265]
[1730646206892,0.02021097,67868.0,67867.0,0.76710265]
[1730646207299,0.018,67868.0,67867.0,0.76710265]
[1730646207597,0.018,67868.0,67867.0,0.78531799]
[1730646208002,0.011,67868.0,67867.0,0.78631799]
[1730646208406,0.073676,67882.0,67867.0,1.08631799]
[1730646208610,0.00221029,67890.0,67889.0,0.073668]
[1730646209314,0.07587629,67890.0,67889.0,0.073668]
[1730646210593,0.08387629,67890.0,67889.0,0.074668]
[1730646210808,0.01421029,67890.0,67889.0,0.075668]
[1730646211398,0.01421029,67890.0,67889.0,0.435468]
[1730646211399,0.01021029,67890.0,67889.0,0.435468]
[1730646211601,0.01221029,67890.0,67889.0,0.435468]
[1730646212109,0.00421029,67890.0,67889.0,0.436468]
[1730646212498,0.00221029,67890.0,67889.0,0.436468]
[1730646212792,0.00221029,67890.0,67889.0,0.434468]
[1730646212992,0.00221029,67890.0,67889.0,0.438468]
[1730646213801,0.00221029,67890.0,67889.0,0.09573921]
[1730646214599,0.00221029,67890.0,67889.0,0.3155752]
[1730646214793,0.3608,67903.0,67902.0,0.073653]
[1730646215000,0.3608,67903.0,67890.0,0.073666]
[1730646215001,0.3608,67903.0,67889.0,0.2419072]
[1730646215201,0.3608,67903.0,67902.0,0.073653]
[1730646215909,0.434452,67903.0,67902.0,0.073653]
[1730646216209,0.3618,67903.0,67902.0,0.074653]
[1730646218102,0.3658,67903.0,67902.0,0.075653]
[1730646220107,0.439452,67903.0,67902.0,0.075653]
[1730646221496,0.439452,67903.0,67902.0,0.002]
[1730646222110,0.439452,67903.0,67902.0,0.075653]
[1730646222508,0.439452,67903.0,67902.0,0.002]
[1730646223714,0.3658,67903.0,67902.0,0.075653]
[1730646224617,0.005,67903.0,67902.0,0.73688567]
[1730646227311,0.005,67903.0,67902.0,0.29508567]
[1730646229814,0.005,67903.0,67885.0,0.3608]
[1730646230015,0.005,67903.0,67889.0,0.073667]
[1730646230016,0.073666,67891.0,67889.0,0.073667]
[1730646230320,0.3608,67901.0,67889.0,0.22005688]
[1730646230321,0.104066,67890.0,67889.0,0.22005688]
[1730646230502,0.073668,67889.0,67888.0,0.00220924]
[1730646230905,0.073668,67889.0,67880.0,0.01820622]
[1730646230906,0.073668,67889.0,67880.0,0.073677]
[1730646231109,0.3912,67890.0,67869.0,0.11672]
[1730646231314,0.3912,67890.0,67865.0,0.43670418]
[1730646231315,0.073668,67889.0,67874.0,0.434483]
[1730646231510,0.073683,67875.0,67874.0,0.3608]
[1730646232121,0.073683,67875.0,67874.0,0.434484]
[1730646232715,0.073683,67875.0,67874.0,0.448484]
[1730646233222,0.073683,67875.0,67874.0,0.087684]
[1730646233612,0.03,67882.0,67874.0,0.014]
[1730646233905,0.03,67882.0,67879.0,0.073678]
[1730646233906,0.073676,67881.0,67879.0,0.073678]
[1730646234108,0.073682,67876.0,67875.0,0.073683]